bitfinex-derivatives/quotes_BTCF0:USTF0_20251011
["timestamp","ask_amount","ask_price","bid_price","bid_amount"]
[1760216947278,0.38206,109740.0,109730.0,0.58702323]
[1760216947478,0.02126,109740.0,109730.0,0.58702323]
[1760216947880,0.02126,109730.0,109720.0,0.95666699]
[1760216948082,0.3821349,109730.0,109720.0,0.58702323]
[1760216948482,7.49e-05,109730.0,109720.0,1.03886393]
[1760216948680,7.49e-05,109730.0,109720.0,1.43886393]
[1760216948875,7.49e-05,109730.0,109720.0,1.34782323]
[1760216949081,0.02126,109720.0,109710.0,0.4518456]
[1760216949280,0.02126,109720.0,109710.0,1.03886883]
[1760216949482,0.3821349,109730.0,109720.0,0.0910407]
[1760216949680,0.0213349,109730.0,109720.0,0.4518407]
[1760216949882,7.49e-05,109730.0,109720.0,1.03886393]
[1760216950287,7.49e-05,109730.0,109720.0,0.67806393]
[1760216950484,0.02126,109720.0,109710.0,0.36964989]
[1760216950687,0.02126,109720.0,109710.0,0.3608]
[1760216951181,0.1123007,109720.0,109710.0,0.3608]
[1760216951381,0.02126,109710.0,109700.0,0.58709465]
[1760216951581,0.02126,109630.0,109620.0,0.44211255]
[1760216951783,0.45837969,109630.0,109610.0,0.67942786]
[1760216951988,0.02126,109620.0,109600.0,0.95002436]
[1760216952182,0.02126,109590.0,109560.0,0.3608]
[1760216952380,0.38206,109590.0,109560.0,0.92827439]
[1760216952584,0.38206,109600.0,109580.0,0.58917439]
[1760216952781,0.3608,109630.0,109600.0,0.0911403]
[1760216952985,0.35989436,109620.0,109610.0,0.58917439]
[1760216953180,9.436e-05,109620.0,109610.0,0.68030639]
[1760216953390,0.3608,109650.0,109610.0,1.90622508]
[1760216953586,0.3608,109650.0,109640.0,0.58917439]
[1760216953786,0.38206,109660.0,109640.0,0.68028149]
[1760216953991,0.3608,109650.0,109640.0,0.0911071]
[1760216954284,0.3608,109650.0,109640.0,0.58917439]
[1760216954483,0.02126,109640.0,109610.0,0.4519313]
[1760216954680,0.3608,109630.0,109620.0,0.0911237]
[1760216954882,0.3608,109640.0,109620.0,0.0911237]
[1760216955084,0.3608,109640.0,109630.0,0.0911154]
[1760216955283,0.36089019,109650.0,109630.0,0.4519154]
[1760216955486,9.019e-05,109650.0,109640.0,0.4519071]
[1760216955681,9.019e-05,109650.0,109640.0,1.04108149]
[1760216956485,9.019e-05,109650.0,109640.0,0.68028149]
[1760216956989,9.019e-05,109650.0,109640.0,1.04108149]
[1760216957395,0.36089019,109650.0,109640.0,0.98917439]
[1760216957686,0.76089019,109650.0,109630.0,0.58917439]
[1760216957893,0.76089019,109650.0,109610.0,0.4519305]
[1760216957894,0.38206,109640.0,109620.0,0.0911235]
[1760216958083,0.38206,109640.0,109630.0,0.58917439]
[1760216958287,0.4731671,109640.0,109620.0,0.58917439]
[1760216958483,0.3608,109630.0,109610.0,0.58917439]
[1760216958684,0.3608,109630.0,109620.0,0.58917439]
[1760216959295,0.3608,109630.0,109620.0,0.98917439]
[1760216959487,0.3608,109630.0,109620.0,0.4911237]
[1760216959693,0.3608,109630.0,109620.0,0.98917439]
[1760216960089,0.36089019,109650.0,109630.0,0.0911154]
[1760216960285,0.3608,109640.0,109630.0,0.68028979]
[1760216960491,9.019e-05,109650.0,109630.0,0.94997439]
[1760216960688,0.38206,109660.0,109650.0,0.0910988]
[1760216960689,0.3608,109660.0,109650.0,0.0910988]
[1760216960988,0.3608,109670.0,109660.0,0.0910905]
[1760216961188,0.3608,109670.0,109660.0,0.68026489]
[1760216961400,0.3608,109680.0,109670.0,0.0910821]
[1760216961592,0.3608,109680.0,109670.0,0.58917439]
[1760216961792,0.38214049,109680.0,109670.0,0.58917439]
[1760216961994,0.0910821,109670.0,109660.0,0.58917439]
[1760216962190,0.1123505,109660.0,109650.0,0.58917439]
[1760216962391,0.4731553,109660.0,109640.0,0.58924574]
[1760216962691,0.3608,109670.0,109650.0,0.0910988]
[1760216962995,0.3608,109670.0,109660.0,0.58917439]
[1760216963196,0.3608,109670.0,109650.0,0.68027309]
[1760216963396,0.3608,109660.0,109650.0,0.68027309]
[1760216963693,0.3608,109660.0,109650.0,0.0910987]
[1760216963889,0.3608,109670.0,109660.0,0.0910905]
[1760216964091,0.36088049,109680.0,109670.0,0.0910821]
[1760216964292,8.049e-05,109680.0,109670.0,0.68025649]
[1760216964489,0.3608,109690.0,109680.0,0.0910738]
[1760216964686,0.3608,109690.0,109680.0,0.68024819]
[1760216964897,0.08441,109700.0,109690.0,0.0910655]
[1760216965191,0.3608,109710.0,109690.0,0.94997439]
[1760216965391,0.3608,109710.0,109700.0,0.68023159]
[1760216965695,0.3608,109720.0,109710.0,0.0910489]
[1760216965893,0.3608,109720.0,109710.0,0.61689833]
[1760216966591,0.38206,109720.0,109710.0,0.0910489]
[1760216966998,0.78206,109720.0,109710.0,0.0910489]
[1760216967790,0.3608,109720.0,109710.0,0.0910489]
[1760216968097,0.7608,109720.0,109710.0,0.61689833]
[1760216968488,0.38206,109720.0,109710.0,0.0910489]
[1760216968888,0.78206,109720.0,109700.0,0.52584943]
[1760216969094,0.78206,109720.0,109700.0,0.0910529]
[1760216969095,0.3608,109710.0,109700.0,0.0910529]
[1760216969294,0.3608,109710.0,109700.0,0.61690233]
[1760216969492,0.3608,109720.0,109710.0,0.0910489]
[1760216969796,0.3608,109720.0,109710.0,0.61689833]
[1760216970095,0.3608,109730.0,109720.0,0.0910406]
[1760216970296,0.3608,109730.0,109720.0,0.61689003]
[1760216970498,0.7608,109730.0,109720.0,0.61689003]
[1760216970696,0.7608,109730.0,109720.0,0.0910406]
[1760216970897,0.3608,109730.0,109720.0,0.0910406]
[1760216971095,0.3608,109730.0,109720.0,0.61689003]
[1760216971297,0.3608,109730.0,109720.0,0.0910406]
[1760216971498,0.3608,109730.0,109720.0,0.61689003]
[1760216971698,0.7608,109730.0,109720.0,0.61689003]
[1760216971894,0.7608,109730.0,109720.0,0.0910406]
[1760216972300,0.7618,109730.0,109720.0,0.0910406]
[1760216973001,0.3618,109730.0,109720.0,0.61689003]
[1760216974800,0.001,109730.0,109720.0,0.0910406]
[1760216975004,0.001,109730.0,109720.0,0.61689003]
[1760216975805,0.3618,109730.0,109720.0,0.0910406]
[1760216976194,0.46644,109740.0,109730.0,0.0910323]
[1760216976597,0.38206,109740.0,109730.0,0.0910323]
[1760216976806,0.3608,109750.0,109740.0,0.0910241]
[1760216977506,0.3608,109750.0,109740.0,0.61687353]
[1760216977903,0.3608,109750.0,109740.0,1.01687353]
[1760216978104,0.3608,109760.0,109750.0,0.0910158]
[1760216978305,0.3608,109760.0,109750.0,0.61686523]
[1760216979109,0.78226,109760.0,109750.0,0.0910158]
[1760216979404,0.38226,109760.0,109750.0,0.0910158]
[1760216979603,0.3608,109760.0,109750.0,0.61686523]
[1760216979807,0.44515,109770.0,109760.0,0.0910075]
[1760216980399,0.46661,109770.0,109760.0,0.0910075]
[1760216982508,0.46661,109770.0,109760.0,0.61685693]
[1760216983008,0.08435,109770.0,109760.0,1.01685693]
[1760216983708,0.3608,109790.0,109770.0,0.0909992]
[1760216983910,0.38206,109800.0,109790.0,0.0909826]
[1760216984113,0.38206,109800.0,109790.0,0.61683203]
[1760216984318,0.38137,109810.0,109800.0,0.0909743]
[1760216984514,0.38137,109830.0,109820.0,0.0909577]
[1760216984813,0.3608,109830.0,109820.0,0.0909577]
[1760216985019,0.3608,109830.0,109820.0,0.61680713]
[1760216985213,0.3608,109830.0,109820.0,0.52584943]
[1760216985413,0.7608,109830.0,109790.0,0.3608]
[1760216985610,0.3608,109810.0,109800.0,0.001]
[1760216986009,1.212566,109810.0,109800.0,0.001]
[1760216986215,1.1216,109810.0,109800.0,0.001]
[1760216986418,0.01957,109800.0,109770.0,0.0909981]
[1760216986618,0.3608,109790.0,109770.0,0.61684753]
[1760216986815,0.38137,109780.0,109760.0,0.88664943]
[1760216987015,0.3608,109770.0,109750.0,0.98642609]
[1760216987310,0.3608,109770.0,109750.0,0.97766283]
[1760216987619,0.3608,109760.0,109750.0,0.61686283]
[1760216987820,0.38137,109760.0,109740.0,0.61687143]
[1760216988022,0.38137,109760.0,109740.0,0.091023]
[1760216988216,0.3608,109750.0,109730.0,0.451829]
[1760216988721,0.02057,109740.0,109730.0,0.091029]
[1760216988910,0.38137,109740.0,109720.0,0.09114529]
[1760216989113,0.78137,109740.0,109720.0,0.00011049]
[1760216989319,0.3608,109730.0,109720.0,0.00011049]
[1760216989919,0.8518323,109730.0,109720.0,0.00011049]
[1760216991016,0.1116117,109720.0,109690.0,0.4518625]
[1760216991223,0.38137,109700.0,109690.0,0.0910655]
[1760216991421,0.38137,109700.0,109680.0,0.88664943]
[1760216991625,0.38137,109700.0,109680.0,0.4518702]
[1760216991825,0.3608,109690.0,109670.0,0.97772533]
[1760216992128,0.38144148,109680.0,109670.0,0.61693153]
[1760216992328,0.38144148,109680.0,109670.0,0.0910821]
[1760216992921,0.38144148,109680.0,109660.0,0.61693343]
[1760216993126,0.3608,109670.0,109660.0,0.61693343]
[1760216993733,0.3608,109670.0,109660.0,0.091084]
[1760216994230,0.3608,109670.0,109660.0,0.61693343]
[1760216994627,0.3608,109670.0,109660.0,0.091084]
[1760216996129,0.36087148,109680.0,109660.0,0.491084]
[1760216996330,7.148e-05,109680.0,109670.0,0.61693153]
[1760216996528,7.148e-05,109680.0,109670.0,0.97773153]
[1760216997527,0.3608,109690.0,109670.0,1.37773153]
[1760216997733,0.3608,109690.0,109680.0,0.61692323]
[1760216998027,0.02057,109680.0,109670.0,0.0910821]
[1760216998235,0.38137,109680.0,109670.0,0.61693153]
[1760216998731,0.38137,109680.0,109670.0,0.0910821]
[1760216999029,0.78137,109680.0,109660.0,0.0910854]
[1760216999236,0.38137,109680.0,109670.0,0.0910822]
[1760217000426,0.38137,109680.0,109650.0,0.36984767]
[1760217000732,0.02057,109660.0,109650.0,0.10014197]
[1760217001332,0.3608,109670.0,109660.0,0.0910904]
[1760217001531,0.3608,109670.0,109660.0,0.61693983]
[1760217001731,0.3608,109680.0,109670.0,0.0910751]
[1760217001929,0.3608,109690.0,109680.0,0.0910738]
[1760217002131,0.3608,109690.0,109680.0,0.61692323]
[1760217002332,0.38137,109700.0,109680.0,1.01692323]
[1760217002634,0.38137,109700.0,109690.0,0.0910656]
[1760217003534,0.3608,109700.0,109690.0,0.61691503]
[1760217004425,0.38137,109720.0,109710.0,0.091049]
[1760217004735,0.38137,109720.0,109700.0,0.61690253]
[1760217005035,0.02172,109700.0,109680.0,0.61691883]
[1760217005224,0.3608,109690.0,109680.0,0.61691963]
[1760217005430,0.3495,109690.0,109680.0,0.61692333]
[1760217005624,0.37122,109690.0,109680.0,0.0910739]
[1760217005831,0.3495,109690.0,109680.0,1.01692333]
[1760217006032,0.3608,109700.0,109680.0,1.01692333]
[1760217006033,0.38137,109720.0,109710.0,0.091049]
[1760217006226,0.3608,109720.0,109710.0,0.61689843]
[1760217006737,0.38352,109720.0,109710.0,0.091049]
[1760217007136,0.3618,109720.0,109710.0,0.091049]
[1760217007331,0.3608,109720.0,109710.0,0.091049]
[1760217007534,0.3608,109720.0,109710.0,1.01789843]
[1760217007735,0.3608,109730.0,109720.0,0.0910407]
[1760217007929,0.38252,109740.0,109720.0,0.52584943]
[1760217008137,0.38252,109740.0,109730.0,0.0910324]
[1760217008331,0.74332,109740.0,109730.0,0.0910324]
[1760217008936,0.02172,109730.0,109710.0,0.52584943]
[1760217009140,0.38252,109730.0,109720.0,0.0910393]
[1760217009337,0.3608,109730.0,109720.0,0.0910393]
[1760217009840,0.3608,109730.0,109700.0,0.4518554]
[1760217009841,0.02172,109710.0,109700.0,0.0910573]
[1760217010137,0.38252,109710.0,109700.0,0.0910573]
[1760217010438,0.3608,109710.0,109700.0,0.4910573]
[1760217010635,0.3608,109720.0,109710.0,0.091049]
[1760217010836,0.38252,109720.0,109710.0,0.091049]
[1760217012039,0.38252,109730.0,109710.0,0.92584943]
[1760217012237,0.38252,109730.0,109720.0,0.0910407]
[1760217012437,0.3608,109730.0,109720.0,0.0910407]
[1760217012638,0.38252,109750.0,109720.0,1.37769013]
[1760217012938,0.38252,109750.0,109740.0,0.61687353]
[1760217013143,0.02172,109770.0,109760.0,0.0910075]
[1760217013345,0.38252,109770.0,109760.0,0.52584943]
[1760217013539,0.38252,109770.0,109760.0,0.0910075]
[1760217014044,0.38252,109770.0,109750.0,0.52584943]
[1760217014045,0.02172,109760.0,109750.0,0.0910094]
[1760217014244,0.38252,109770.0,109750.0,0.61685883]
[1760217014441,0.02172,109780.0,109770.0,0.0909992]
[1760217014745,0.38252,109790.0,109780.0,0.0909909]
[1760217014940,0.38252,109790.0,109780.0,0.61684033]
[1760217015335,0.38252,109790.0,109780.0,0.0909909]
[1760217015537,0.78252,109790.0,109750.0,0.3608]
[1760217015741,0.3608,109770.0,109750.0,0.61686033]
[1760217016238,0.3608,109770.0,109760.0,0.0910075]
[1760217016642,0.3608,109770.0,109750.0,0.52584943]
[1760217017046,0.3608,109770.0,109750.0,0.52684943]
[1760217017447,0.3608,109770.0,109760.0,0.0910075]
[1760217017648,0.7608,109770.0,109750.0,0.0910151]
[1760217017846,0.3608,109770.0,109750.0,0.0910151]
[1760217018542,0.3608,109760.0,109750.0,0.0910158]
[1760217019144,0.3608,109760.0,109750.0,0.61686523]
[1760217019442,0.3608,109770.0,109760.0,0.0910075]
[1760217019646,0.3608,109780.0,109770.0,0.0909992]
[1760217020042,0.38252,109790.0,109780.0,0.0909909]
[1760217020438,0.38252,109790.0,109780.0,0.61684033]
[1760217021048,0.38252,109790.0,109780.0,1.01684033]
[1760217021247,0.02172,109790.0,109780.0,1.01684033]
[1760217021748,0.02172,109800.0,109790.0,0.0909826]
[1760217022049,0.02172,109790.0,109780.0,0.52584943]
[1760217022242,0.38252,109790.0,109780.0,0.61683543]
[1760217022448,0.38252,109790.0,109780.0,0.090986]
[1760217022850,0.38252,109790.0,109770.0,0.52584943]
[1760217022851,0.02172,109780.0,109770.0,0.61684493]
[1760217023050,0.38252,109780.0,109770.0,0.61684493]
[1760217023545,0.02172,109780.0,109770.0,0.0909955]
[1760217023750,0.38252,109780.0,109770.0,0.61684493]
[1760217024447,0.02172,109780.0,109770.0,0.61684493]
[1760217024652,0.02172,109780.0,109770.0,0.97764493]
[1760217025055,0.38252,109800.0,109790.0,0.0909826]
[1760217025256,0.38252,109800.0,109790.0,0.61683203]
[1760217025554,0.38252,109810.0,109800.0,0.0909743]
[1760217025751,0.38252,109810.0,109800.0,0.61682373]
[1760217026245,0.38252,109820.0,109810.0,0.090966]
[1760217026445,0.45959718,109830.0,109810.0,0.090966]
[1760217026446,0.45959718,109830.0,109820.0,0.0909578]
[1760217026652,0.45959718,109830.0,109820.0,0.61680723]
[1760217026856,0.02172,109820.0,109810.0,0.0909632]
[1760217027048,0.02172,109820.0,109810.0,0.52584943]
[1760217027353,0.02172,109810.0,109800.0,0.61681723]
[1760217027556,0.38252,109810.0,109800.0,0.0909743]
[1760217027945,0.38252,109810.0,109790.0,0.58728242]
[1760217028151,0.38252,109800.0,109790.0,0.0909826]
[1760217028345,0.02172,109800.0,109790.0,0.67826502]
[1760217028854,0.38252,109810.0,109800.0,0.0909743]
[1760217029044,0.38252,109810.0,109800.0,0.67825672]
[1760217029249,0.02172,109800.0,109790.0,0.67826052]
[1760217029455,0.02172,109800.0,109790.0,0.0909781]
[1760217029649,0.02172,109800.0,109790.0,0.67826052]
[1760217029852,0.02172,109800.0,109790.0,0.0909781]
[1760217030050,0.02172,109800.0,109790.0,0.67826052]
[1760217030557,0.38252,109800.0,109790.0,0.0909781]
[1760217030754,0.38252,109800.0,109790.0,0.67826052]
[1760217030954,0.38252,109800.0,109790.0,0.0909781]
[1760217031155,0.38252,109800.0,109790.0,0.67826052]
[1760217031359,0.02172,109800.0,109790.0,0.67826052]
[1760217031559,0.38252,109800.0,109790.0,0.67826052]
[1760217032054,0.4475,109810.0,109790.0,0.67826052]
[1760217032258,0.4475,109810.0,109800.0,0.67825672]
[1760217032450,0.06498,109810.0,109800.0,0.67825672]
[1760217032655,0.06498,109810.0,109800.0,0.07863409]
[1760217032854,0.06498,109810.0,109800.0,0.66591651]
[1760217033352,0.08622,109810.0,109800.0,0.66591651]
[1760217033555,0.44702,109810.0,109800.0,0.66591651]
[1760217034058,0.08622,109810.0,109800.0,0.66591651]
[1760217034655,0.06498,109810.0,109800.0,1.42671651]
[1760217034963,0.02172,109820.0,109800.0,2.01399893]
[1760217035264,0.02124,109820.0,109810.0,1.43904842]
[1760217035657,0.02124,109820.0,109810.0,0.090966]
[1760217035860,0.02124,109820.0,109810.0,1.03904842]
[1760217036161,0.02124,109820.0,109810.0,1.43904842]
[1760217037160,0.02124,109820.0,109810.0,1.07824842]
[1760217038659,0.38204,109830.0,109820.0,0.0909578]
[1760217038860,0.02124,109830.0,109820.0,0.67824022]
[1760217039058,0.38204,109830.0,109820.0,0.58728242]
[1760217039262,0.02124,109820.0,109810.0,0.0909658]
[1760217039463,0.02124,109820.0,109810.0,0.67824822]
[1760217039955,0.38204,109820.0,109810.0,0.67824822]
[1760217041062,0.02124,109820.0,109810.0,1.03904822]
[1760217041364,0.38204,109830.0,109820.0,0.0909578]
[1760217041664,0.02124,109830.0,109820.0,0.67824022]
[1760217041861,0.38204,109830.0,109820.0,0.67824022]
[1760217042161,0.38204,109830.0,109820.0,0.58728242]
[1760217042358,0.38204,109830.0,109820.0,0.67824022]
[1760217043553,0.02124,109830.0,109820.0,0.68351402]
[1760217044159,0.78204,109830.0,109820.0,0.0052738]
[1760217044355,0.0211,109800.0,109790.0,0.09105308]
[1760217044561,0.3819,109800.0,109790.0,0.09623158]
[1760217044760,0.8728743,109800.0,109790.0,0.5925314]
[1760217044961,0.7819,109800.0,109790.0,0.683514]
[1760217046568,0.7819,109800.0,109790.0,0.09623158]
[1760217046763,0.7819,109800.0,109790.0,0.683514]
[1760217046963,0.7819,109800.0,109790.0,0.6783355]
[1760217047662,0.8728743,109800.0,109790.0,7.048e-05]
[1760217047866,0.7819,109800.0,109790.0,7.048e-05]
[1760217048369,0.8728743,109800.0,109790.0,7.048e-05]
[1760217048971,0.7819,109800.0,109790.0,7.048e-05]
[1760217049368,0.3819,109800.0,109790.0,7.048e-05]
[1760217051470,0.8728743,109800.0,109790.0,7.048e-05]
[1760217051967,0.0211,109770.0,109760.0,0.67828992]
[1760217052266,0.3819,109770.0,109760.0,0.59249206]
[1760217052472,0.3819,109770.0,109760.0,0.68349956]
[1760217052773,0.3819,109770.0,109760.0,1.08349956]
[1760217052975,0.38200908,109770.0,109760.0,1.08349956]
[1760217053173,0.02120908,109770.0,109760.0,1.08349956]
[1760217053363,0.3819,109800.0,109780.0,0.0909909]
[1760217053564,0.0211,109820.0,109790.0,1.53536484]
[1760217053565,0.3819,109820.0,109790.0,1.53536484]
[1760217053770,0.3819,109820.0,109810.0,0.67824842]
[1760217054472,0.0211,109830.0,109820.0,0.0909578]
[1760217054868,0.0211,109830.0,109820.0,0.58728242]
[1760217055072,0.3819,109830.0,109820.0,0.59264448]
[1760217055281,0.3819,109830.0,109810.0,0.3608]
[1760217055282,0.7819,109830.0,109810.0,0.58728242]
[1760217055574,0.3819,109820.0,109810.0,0.58728242]
[1760217055777,0.0211,109810.0,109800.0,0.67825672]
[1760217055972,0.3819,109810.0,109800.0,0.68351815]
[1760217056475,0.3819,109810.0,109800.0,0.59254385]
[1760217056675,0.0211,109800.0,109790.0,0.67826352]
[1760217057076,0.0211,109810.0,109800.0,0.0909743]
[1760217057270,0.0211,109810.0,109800.0,0.67825672]
[1760217057473,0.0211,109810.0,109800.0,1.66553914]
[1760217057873,0.0211,109810.0,109800.0,1.17990624]
[1760217058068,0.3819,109820.0,109810.0,0.090966]
[1760217058274,0.0211,109820.0,109810.0,0.67824842]
[1760217058568,0.0211,109810.0,109800.0,0.0963139]
[1760217058773,0.0211,109810.0,109800.0,0.68359632]
[1760217059879,0.3819,109820.0,109810.0,0.090966]
[1760217060079,0.3819,109820.0,109810.0,0.67824842]
[1760217060475,0.3819,109820.0,109810.0,0.090966]
[1760217060672,0.3819,109820.0,109810.0,0.67824842]
[1760217061784,0.3819,109820.0,109810.0,0.090966]
[1760217062277,0.7819,109820.0,109810.0,0.090966]
[1760217062583,0.7819,109820.0,109810.0,0.67824842]
[1760217065276,0.02035,109810.0,109800.0,0.58728242]
[1760217065478,0.38115,109810.0,109800.0,0.67825672]
[1760217066277,0.38115,109810.0,109800.0,0.0909743]
[1760217066481,0.38115,109810.0,109800.0,0.67825672]
[1760217066877,0.02035,109810.0,109800.0,0.67825672]
[1760217067184,0.02035,109810.0,109800.0,2.02633914]
[1760217067376,0.3819,109820.0,109810.0,0.090966]
[1760217067582,0.3819,109820.0,109810.0,0.67824842]
[1760217067982,0.0211,109830.0,109810.0,1.43904842]
[1760217068185,0.3819,109840.0,109830.0,0.0909495]
[1760217068377,0.3819,109840.0,109830.0,0.67823192]
[1760217069483,0.02035,109820.0,109810.0,0.451766]
[1760217069681,0.38115,109820.0,109790.0,0.44748471]
[1760217069880,0.02035,109810.0,109800.0,0.0909695]
[1760217070184,0.02035,109810.0,109800.0,1.03905192]
[1760217071478,0.02035,109810.0,109800.0,0.4517695]
[1760217071679,0.02035,109800.0,109790.0,0.45714786]
[1760217071878,0.02035,109800.0,109790.0,0.68363028]
[1760217072083,0.38115,109800.0,109790.0,0.68363028]
[1760217072681,0.38115,109800.0,109790.0,0.00537216]
[1760217072888,0.02035,109790.0,109780.0,0.4517895]
[1760217073086,0.02035,109790.0,109770.0,0.44211255]
[1760217073283,0.02035,109790.0,109770.0,1.03908032]
[1760217073284,0.02035,109780.0,109770.0,1.03908032]
[1760217073482,0.02035,109780.0,109770.0,0.3608]
[1760217073686,0.38115,109780.0,109770.0,0.58728242]
[1760217074389,0.38115,109780.0,109770.0,0.67828162]
[1760217074788,0.38115,109780.0,109760.0,0.3608]
[1760217074981,0.02035,109770.0,109760.0,0.94808242]
[1760217075185,0.02035,109770.0,109760.0,0.67828992]
[1760217075689,0.02035,109770.0,109760.0,0.68361486]
[1760217076592,0.02035,109770.0,109760.0,0.68461486]
[1760217076786,0.02035,109770.0,109760.0,1.44541486]
[1760217076992,0.02035,109770.0,109760.0,1.08461486]
[1760217077395,0.02035,109770.0,109760.0,0.68461486]
[1760217078389,0.78115,109770.0,109760.0,0.58828242]
[1760217078586,0.78115,109770.0,109760.0,0.001]
[1760217080493,1.45943162,109770.0,109760.0,0.001]
[1760217080893,1.45943162,109770.0,109740.0,0.67830572]
[1760217080894,0.02035,109740.0,109730.0,0.58735469]
[1760217081097,0.38115,109740.0,109730.0,7.227e-05]
[1760217081294,0.78115,109740.0,109730.0,7.227e-05]
[1760217081800,0.8721741,109740.0,109730.0,7.227e-05]
[1760217082000,0.8721741,109740.0,109690.0,0.3608]
[1760217082001,0.01835,109700.0,109690.0,0.4518655]
[1760217082298,0.01835,109700.0,109690.0,1.03914792]
[1760217082802,0.01835,109700.0,109690.0,0.4518655]
[1760217082988,0.01841405,109700.0,109690.0,0.67834792]
[1760217083601,0.01841405,109700.0,109690.0,1.07834792]
[1760217083792,0.01841405,109700.0,109690.0,1.43914792]
[1760217084394,0.01841405,109700.0,109690.0,1.03914792]
[1760217085197,0.01841405,109700.0,109690.0,1.43914792]
[1760217086309,0.01841405,109700.0,109690.0,1.03914792]
[1760217086908,0.02035,109720.0,109710.0,0.0910489]
[1760217087107,0.02035,109720.0,109710.0,1.03913132]
[1760217087504,0.02035,109720.0,109710.0,0.4518489]
[1760217087798,0.02035,109720.0,109710.0,1.03913132]
[1760217088098,0.02035,109720.0,109710.0,0.94808242]
[1760217088301,0.02035,109720.0,109710.0,1.03913132]
[1760217089504,0.02035,109720.0,109710.0,0.97767953]
[1760217089711,0.02035,109730.0,109720.0,0.0910407]
[1760217089903,0.02035,109740.0,109730.0,0.0910324]
[1760217090106,0.02035,109750.0,109730.0,0.97766303]
[1760217090406,0.02035,109750.0,109740.0,0.97765473]
[1760217090804,0.02035,109760.0,109740.0,1.28663063]
[1760217091008,0.02035,109760.0,109750.0,0.97764643]
[1760217091707,0.02035,109760.0,109750.0,0.4518157]
[1760217092104,0.02035,109760.0,109750.0,0.97764633]
[1760217092303,0.02035,109770.0,109760.0,0.0910075]
[1760217092503,0.02035,109770.0,109760.0,0.97763813]
[1760217092911,0.02035,109770.0,109760.0,0.4518075]
[1760217093306,0.42035,109770.0,109760.0,0.97763813]
[1760217093506,0.02035,109770.0,109760.0,0.4518075]
[1760217093907,0.02035,109770.0,109760.0,0.52583063]
[1760217094111,0.01913,109760.0,109750.0,0.97764383]
[1760217095213,0.01913,109760.0,109750.0,0.98364039]
[1760217095412,0.01913,109760.0,109750.0,0.97764383]
[1760217096305,0.02035,109770.0,109760.0,0.0910075]
[1760217096510,0.02035,109780.0,109770.0,0.0909992]
[1760217096710,0.02035,109780.0,109770.0,0.97762983]
[1760217096911,0.02035,109780.0,109770.0,1.37762983]
[1760217097709,0.01913,109810.0,109770.0,1.47938398]
[1760217098010,0.01913,109820.0,109810.0,0.090966]
[1760217098209,0.01913,109820.0,109810.0,0.97759663]
[1760217099214,0.41913,109820.0,109810.0,0.3608]
[1760217099509,0.01913,109810.0,109800.0,0.3608]
[1760217100010,0.01913,109810.0,109780.0,0.98378575]
[1760217100011,0.01913,109800.0,109780.0,0.98378575]
[1760217100214,0.01913,109800.0,109790.0,0.97761323]
[1760217100708,0.01913,109810.0,109800.0,0.0909743]
[1760217100918,0.01913,109810.0,109800.0,0.97760493]
[1760217101208,0.01913,109820.0,109810.0,0.090966]
[1760217101415,0.01913,109820.0,109810.0,0.97759663]
[1760217101613,0.41913,109820.0,109810.0,0.3608]
[1760217101816,0.01952,109810.0,109800.0,0.97760413]
[1760217104315,0.01952,109810.0,109800.0,0.4517735]
[1760217104705,0.01952,109810.0,109800.0,0.97760413]
[1760217104912,0.01913,109820.0,109810.0,0.090966]
[1760217105114,0.01913,109820.0,109810.0,0.97759663]
[1760217106113,0.01913,109820.0,109810.0,0.3608]
[1760217106114,0.41913,109820.0,109810.0,0.3608]
[1760217106314,0.01952,109810.0,109800.0,0.61679873]
[1760217106520,0.01952,109810.0,109800.0,0.97759873]
[1760217106916,0.01952,109800.0,109790.0,0.97761263]
[1760217109723,0.01952,109800.0,109790.0,0.97761323]
[1760217110420,0.01952,109810.0,109800.0,0.0909743]
[1760217110723,0.01952,109810.0,109800.0,0.97760493]
[1760217111516,0.01913,109830.0,109810.0,0.090966]
[1760217111718,0.01952,109840.0,109830.0,0.0909495]
[1760217111914,0.01952,109840.0,109830.0,0.97758013]
[1760217112820,0.01952,109840.0,109830.0,0.4517495]
[1760217113024,0.01952,109840.0,109830.0,0.97758013]
[1760217113820,0.02052,109840.0,109830.0,0.0909494]
[1760217114017,0.02052,109840.0,109830.0,0.4517494]
[1760217114523,0.02052,109840.0,109830.0,0.97758003]
[1760217115224,0.01952,109830.0,109820.0,0.3608]
[1760217115428,0.01952,109830.0,109820.0,0.97758833]
[1760217115629,0.001,109840.0,109830.0,0.0909494]
[1760217115817,0.001,109840.0,109830.0,0.97758003]
[1760217116021,0.001,109840.0,109830.0,1.37758003]
[1760217116419,0.01952,109860.0,109850.0,0.0909329]
[1760217116629,0.01952,109860.0,109850.0,0.97756353]
[1760217117734,0.41952,109860.0,109850.0,0.4517329]
[1760217117928,0.01952,109850.0,109840.0,0.97756873]
[1760217118126,0.01952,109860.0,109850.0,0.0909329]
[1760217118322,0.01952,109860.0,109850.0,0.97756353]
[1760217118522,0.41952,109860.0,109850.0,0.97756353]
[1760217118727,0.41952,109860.0,109840.0,0.97756513]
[1760217119023,0.01952,109850.0,109840.0,0.97756513]
[1760217119222,0.01952,109850.0,109840.0,0.4517412]
[1760217119631,0.41952,109850.0,109840.0,0.3608]
[1760217119831,0.41952,109850.0,109840.0,0.4517412]
[1760217120128,0.01952,109850.0,109840.0,0.97757183]
[1760217120333,0.01952,109850.0,109840.0,1.37757183]
[1760217121432,0.02052,109850.0,109840.0,0.8517412]
[1760217121632,0.001,109850.0,109840.0,1.37757183]
[1760217121832,0.001,109850.0,109840.0,0.8517412]
[1760217122033,0.001,109850.0,109840.0,1.37757183]
[1760217122228,0.01952,109860.0,109850.0,0.0909329]
[1760217122629,0.01952,109860.0,109850.0,0.4517329]
[1760217122826,0.01952,109860.0,109850.0,0.97756353]
[1760217123027,0.01952,109870.0,109860.0,0.0909246]
[1760217123234,0.01952,109870.0,109860.0,0.97755523]
[1760217123735,0.01952,109880.0,109870.0,0.0909163]
[1760217123936,0.01952,109880.0,109870.0,0.97754693]
[1760217124137,0.01994,109890.0,109880.0,0.0909081]
[1760217124327,0.01994,109890.0,109880.0,0.97753873]
[1760217124927,0.01994,109890.0,109880.0,0.88663063]
[1760217125135,0.41994,109890.0,109880.0,0.3608]